Cogmind - Beta 13 @@@ ROGUE MODE // 2024.05.01 @ 13:49:20 Player: Barbarossa Result: Self-destructed Performance ------------- Evolutions (2) 1000 Regions Visited (3) 600 Robots Destroyed (31) 155 Value Destroyed (838) 838 Prototype IDs (2) 40 Alien Tech Used (0) 0 Bonus (0) 0 TOTAL SCORE: 2633 Bonus ------- None Cogmind --------- Core Integrity 434/550 Matter 23/300 Energy 160/160 System Corruption 0% Temperature Cool (9) Movement Treading (160) Location -8/Materials Parts ------- > --- POWER (1) -------- Light Nuclear Core > --- PROPULSION (4) --- Light Treads Aluminum Leg Titanium Leg > --- UTILITY (3) ------ Medium Storage Unit Signal Interpreter > --- WEAPON (3) ------- Enhanced Autogun > --- INVENTORY (10) --- Light Nuclear Core Airjet Airjet Improved Heat Sink Medium Storage Unit Large Matter Pod (0) Advanced Targeting Computer Light Armor Plating Hacking Suite Datajack Peak State ------------ > --- POWER ------------ Light Nuclear Core > --- PROPULSION ------- Light Treads Light Treads Aluminum Leg Titanium Leg > --- UTILITY ---------- Medium Storage Unit Improved Sensor Array Signal Interpreter > --- WEAPON ----------- Enhanced Autogun Enhanced Autogun Enhanced Autogun > --- INVENTORY -------- Light Nuclear Core Airjet Airjet Improved Heat Sink Medium Storage Unit Large Matter Pod Targeting Computer Light Armor Plating Hacking Suite Datajack [Rating: 28] Favorites ----------- Power Light Nuclear Core Engine Ion Engine Power Core Light Nuclear Core Propulsion Aluminum Leg Treads Light Treads Leg Aluminum Leg Flight Unit Improved Flight Unit Utility Signal Interpreter Device Improved Sensor Array Storage Medium Storage Unit Processor Signal Interpreter Weapon Enhanced Autogun Energy Gun Beam Rifle Ballistic Gun Enhanced Autogun Build | -11 -10 -9 -8 ------- Run | Yrd Mat Mat Mat Slots Evolved 4 | . . 2 2 Power . | . . . . Propulsion 2 | . . 2 . Utility 1 | . . . 1 Weapon 1 | . . . 1 Parts Attached 28 | . 6 14 8 Power 4 | . 1 1 2 Engine 1 | . 1 . . Core 3 | . . 1 2 Reactor . | . . . . Propulsion 13 | . 1 8 4 Treads 7 | . . 6 1 Leg 5 | . 1 2 2 Wheel . | . . . . Hover . | . . . . Flight 1 | . . . 1 Utility 4 | . 2 1 1 Device 1 | . . . 1 Storage 2 | . 1 1 . Processor 1 | . 1 . . Hackware . | . . . . Protection . | . . . . Artifact . | . . . . Weapon 7 | . 2 4 1 Energy Gun 2 | . 1 1 . Energy Cannon . | . . . . Ballistic Gun 5 | . 1 3 1 Ballistic Cannon . | . . . . Launcher . | . . . . Special Weapon . | . . . . Impact Weapon . | . . . . Slashing Weapon . | . . . . Piercing Weapon . | . . . . Special Melee Weapon . | . . . . Unidentified Prototypes 2 | . . 1 1 Parts Lost 4 | . 1 . 3 Power . | . . . . Propulsion 1 | . . . 1 Utility 1 | . . . 1 Weapon 2 | . 1 . 1 Highest Loss Streak 2 | . 1 . 2 To Critical Strikes . | . . . . Average Slot Usage (%) 97 | . 97 99 94 Engine 5 | . 14 4 . Core 5 | . . 6 9 Treads 16 | . . 21 17 Leg 22 | . 28 21 17 Device 1 | . . . 6 Storage 11 | . 14 11 9 Processor 10 | . 11 11 9 Energy Gun 5 | . 13 4 . Ballistic Gun 17 | . 14 17 24 Naked Turns . | . . . . Heaviest Build 25 | 13 18 21 25 Greatest Support 27 | 20 20 20 27 Greatest Overweight (x) 2 | . . 1 2 Average Overweight (x) . | . . . . Largest Inventory Capacity 10 | . 10 10 10 Average Capacity 9 | . 9 10 10 Most Carried 10 | . 10 10 10 Average Carried 9 | . 8 9 9 Final Capacity 10 | 8 10 10 10 Final Carried 10 | 6 9 10 10 Class Distribution -------------------- 48% | Mutant 38% | Scavenger-Mutant 13% | Scavenger-Skirmisher Dominant Class ---------------- Scavenger-Mutant | -10/Materials Mutant | -9/Materials Scavenger-Skirmisher | -8/Materials Resources | -11 -10 -9 -8 ----------- Run | Yrd Mat Mat Mat Matter Collected 720 | 199 131 233 157 Remotely . | . . . . Salvage Created 1016 | . 271 588 157 Parts 82 | . 21 56 5 Haulers Intercepted 1 | . 1 . . Recyclers Shooed 1 | . 1 . . Parts Field Recycled . | . . . . Retrieved Matter . | . . . . Parts Self-Destructed . | . . . . Prevented . | . . . . Kills | -11 -10 -9 -8 ------- Run | Yrd Mat Mat Mat Combat Hostiles Destroyed 26 | . 7 16 3 Guns 26 | . 7 16 3 Classes Destroyed 6 | . 4 2 . Hauler 1 | . 1 . . Operator 1 | . . 1 . Watcher 3 | . 1 2 . Swarmer 10 | . 3 7 . Grunt 10 | . 4 3 3 Sentry 6 | . . 6 . Best Kill Streak 4 | . 4 4 1 Combat Bots Only 4 | . 4 4 1 Max Kills in Single Turn 2 | . 2 1 1 Gunslinging 1 | . 1 . . Exploded . | . . . . Melee . | . . . . Uniques/NPCs Destroyed . | . . . . Combat | -11 -10 -9 -8 -------- Run | Yrd Mat Mat Mat Hostile Shots Fired 174 | . 52 56 66 Missed 55 | . 23 20 12 Damage Taken 1500 | . 282 402 816 Core 161 | . 28 17 116 Absorbed by Shields . | . . . . Regen/Repaired (Parts) 130 | . . 130 . Core Remaining (%) 94 | 100 88 95 . Volleys Fired 87 | . 27 46 14 Largest 3 | . 2 2 3 Hottest 81 | . 60 81 75 Shots Fired 181 | . 47 92 42 Gun 181 | . 47 92 42 Cannon . | . . . . Launcher . | . . . . Special . | . . . . Kinetic 145 | . 27 76 42 Thermal 36 | . 20 16 . Explosive . | . . . . Electromagnetic . | . . . . Robot Hit Streak 12 | . 5 12 9 Robot Miss Streak 6 | . 5 6 2 Penetration Max . | . . . . Secondary Targets 2 | . 2 . . Max Gunslinging Chain 1 | . 1 . . Shots Hit Robots 102 | . 25 51 26 Core Hits 50 | . 16 26 8 Critical Kills 2 | . . 2 . Critical Parts Destroyed 1 | . . 1 . Critical Strikes 3 | . . 3 . Destroy 3 | . . 3 . Melee Attacks . | . . . . Impact . | . . . . Slashing . | . . . . Piercing . | . . . . Sneak Attacks . | . . . . Combat Hostiles . | . . . . Follow-up Attacks . | . . . . Damage Inflicted 1596 | . 302 835 459 Guns 1595 | . 302 835 458 Cannons . | . . . . Explosions . | . . . . Melee . | . . . . Ramming 1 | . . . 1 Kinetic 1360 | . 181 721 458 Thermal 235 | . 121 114 . Explosive . | . . . . Electromagnetic . | . . . . Impact . | . . . . Slashing . | . . . . Piercing . | . . . . Highest Corruption . | . . . . Average Corruption . | . . . . Corruption Purged . | . . . . Corruption Blocked . | . . . . Overload Shots . | . . . . Overflow Damage . | . . . . Projectiles . | . . . . Explosions . | . . . . Melee . | . . . . Knockbacks . | . . . . Impact . | . . . . Kinetic . | . . . . Secondary . | . . . . Self-Inflicted Damage . | . . . . Shots . | . . . . Rammed 1 | . . . 1 Targets Rammed 1 | . . . 1 Kicked . | . . . . Crushed . | . . . . Highest Temperature 156 | . 54 74 156 Average Temperature 30 | . 17 19 65 Received Heat Transfer 546 | . 87 126 333 Siege Activations . | . . . . Robots Corrupted . | . . . . Combat Hostiles . | . . . . Parts Fried . | . . . . Impact Corruptions . | . . . . Robots Melted . | . . . . Combat Hostiles . | . . . . Parts Melted . | . . . . Heat Transferred 571 | . 275 296 . Parts Sabotaged . | . . . . Parts Stolen . | . . . . Parts Stripped . | . . . . Power Chain Reactions . | . . . . Alert | -11 -10 -9 -8 ------- Run | Yrd Mat Mat Mat Peak Influence 378 | . 279 378 154 Initial 64 | . . 33 64 Average 146 | . 187 142 110 Maximum Alert Level 1 | . 1 1 . Low Security (%) 63 | . 43 60 100 Level 1 36 | . 56 39 . Level 2 . | . . . . Level 3 . | . . . . Level 4 . | . . . . Level 5 . | . . . . High Security . | . . . . Max Security . | . . . . Squads Dispatched 4 | . 1 3 . Investigation 1 | . . 1 . Extermination . | . . . . Reinforcement 3 | . 1 2 . Assault . | . . . . Garrison . | . . . . Intercept . | . . . . Searches Triggered . | . . . . Construction Impeded . | . . . . Haulers Reinforced . | . . . . Active Scanning Responses . | . . . . Cargo Convoy Interrupts . | . . . . Stealth | -11 -10 -9 -8 --------- Run | Yrd Mat Mat Mat Distress Signals 3 | . 1 1 1 Communications Jammed . | . . . . Distress Signals . | . . . . Times Spotted 44 | . 16 21 7 Peak Tracking Total 6 | . 6 4 4 Tactical Retreats 2 | . 2 . . Traps | -11 -10 -9 -8 ------- Run | Yrd Mat Mat Mat Traps Triggered 2 | . . 2 . Indirectly . | . . . . Trap Hack Attempts . | . . . . Triggered . | . . . . Disarmed . | . . . . Reprogrammed . | . . . . Reused . | . . . . Traps Extracted . | . . . . Installed . | . . . . Triggered . | . . . . Machines | -11 -10 -9 -8 ---------- Run | Yrd Mat Mat Mat Machines Disabled 1 | . . 1 . Max in Single Turn 1 | . . 1 . Machines Repaired . | . . . . Machines Dismantled . | . . . . Machines Sabotaged . | . . . . Overloaded Fab Kills . | . . . . Hacking | -11 -10 -9 -8 --------- Run | Yrd Mat Mat Mat Machines Accessed 9 | . . 8 1 Terminals 6 | . . 5 1 Fabricators . | . . . . Repair Stations 2 | . . 2 . Recycling Units . | . . . . Scanalyzers 1 | . . 1 . Garrison Access . | . . . . Total Hacks 31 | . . 29 2 Successful 18 | . . 17 1 Failed 13 | . . 12 1 Catastrophic 3 | . . 3 . Database Lockouts . | . . . . Manual 18 | . . 16 2 Terminals 18 | . . 16 2 Fabricators . | . . . . Repair Stations 8 | . . 8 . Recycling Units . | . . . . Scanalyzers 5 | . . 5 . Garrison Access . | . . . . Terminal Hacks 2 | . . 2 . Unreport Threat 2 | . . 2 . Fabricator Hacks . | . . . . Repair Station Hacks 6 | . . 6 . Scan Component 3 | . . 3 . Repair 3 | . . 3 . Recycling Unit Hacks . | . . . . Scanalyzer 5 | . . 5 . Insert Component 2 | . . 2 . Analyze 3 | . . 3 . Garrison Access Hacks . | . . . . Unauthorized Hacks 5 | . . 4 1 Terminals 5 | . . 4 1 Botnet 5 | . . 4 1 Fabricators . | . . . . Repair Stations . | . . . . Recycling Units . | . . . . Scanalyzers . | . . . . Garrison Access . | . . . . Data Cores Recovered . | . . . . Used . | . . . . Hacking Detections 8 | . . 7 1 Full Trace Events . | . . . . Feedback Events . | . . . . Feedback Blocked . | . . . . Robot Schematics Acquired . | . . . . Robots Built . | . . . . Authchips . | . . . . Time . | . . . . Total Robot Build Rating . | . . . . Part Schematics Acquired 2 | . . 2 . Parts Built . | . . . . Authchips . | . . . . Time . | . . . . Total Part Build Rating . | . . . . Parts Repaired 3 | . . 3 . Time 65 | . . 65 . Parts Recycled . | . . . . Recycled Matter . | . . . . Retrieved Matter . | . . . . Retrieved Components . | . . . . Parts Scanalyzed 2 | . . 2 . Part Schematics Acquired 2 | . . 2 . Parts Damaged . | . . . . Bothacking | -11 -10 -9 -8 ------------ Run | Yrd Mat Mat Mat Used RIF Installer . | . . . . Robots Hacked . | . . . . Non-combat . | . . . . Combat . | . . . . Robot Hacks Applied . | . . . . Relay Couplers Released . | . . . . Fabnet Peak Effective % . | . . . . Robots Rewired . | . . . . Allies Hacked . | . . . . Hacks Repelled . | . . . . Allies | -11 -10 -9 -8 -------- Run | Yrd Mat Mat Mat Total Allies . | . . . . Largest Group . | . . . . Highest-Rated Group . | . . . . Highest-Rated Ally . | . . . . Total Orders . | . . . . Ally Attacks . | . . . . Total Damage . | . . . . Kills . | . . . . Allies Corrupted . | . . . . Allies Melted . | . . . . Intel | -11 -10 -9 -8 ------- Run | Yrd Mat Mat Mat Robot Analysis Total . | . . . . Derelict Logs Recovered . | . . . . Drone Launches . | . . . . Drone Recoveries . | . . . . Exploration | -11 -10 -9 -8 ------------- Run | Yrd Mat Mat Mat Turns Passed 1761 | . 401 1032 328 Spaces Moved 834 | 1 257 453 123 Core . | . . . . Treads 88 | . . 18 70 Legs 746 | 1 257 435 53 Wheels . | . . . . Hover . | . . . . Flight . | . . . . Fastest Speed 120 | 120 120 120 125 Average Speed 164 | 120 120 175 216 Slowest Speed 260 | 120 120 240 260 Overloaded Moves . | . . . . Propulsion Burnouts . | . . . . Robots Hopped . | . . . . Cave-ins Triggered . | . . . . Exploration Rate (%) 23 | 2 38 41 14 Regions Visited 3 Branch Regions . Pre-discovered Areas . | . . . . Known Exits Taken 2 | . 1 1 . Unknown Exits Taken 1 | 1 . . . Scrap Searched . | . . . . Spaces Dug . | . . . . Terrain Destroyed . | . . . . Melee . | . . . . Projectile . | . . . . AOE . | . . . . Terrain Rammed . | . . . . Walls Destroyed . | . . . . Machines Disabled . | . . . . Actions | -11 -10 -9 -8 --------- Run | Yrd Mat Mat Mat Total 1098 | . 303 623 172 Wait 106 | . 4 93 9 Move 831 | . 256 452 123 Hop . | . . . . Pick Up 19 | . 5 8 6 Fast Attach 10 | . 1 6 3 Attach 4 | . 1 2 1 Detach . | . . . . Swap 14 | . 4 6 4 Drop 26 | . 5 10 11 Fire 87 | . 27 46 14 Melee . | . . . . Ram . | . . . . Kick . | . . . . Crush 1 | . . . 1 Escape Stasis . | . . . . Rewire . | . . . . Trap . | . . . . Miscellaneous . | . . . . Route ------- -11/Scrapyard -10/Materials (discovered 2 exits: *Mat / *Min) -9/Materials (discovered 2 exits: *Mat / *Sto) -8/Materials History --------- Turn | Location | Event 1 | -11/Scrapyard | Discovered new exit (range 0) 1 | -11/Scrapyard | Entered Materials 37 | -10/Materials | Discovered new exit (range 15) 68 | -10/Materials | Identified exit to Mines 386 | -10/Materials | Discovered new exit (range 7) 400 | -10/Materials | Identified exit to Materials 402 | -10/Materials | Entered another Materials area 402 | -9/Materials | Evolved 2 slots: Propulsion x2 577 | -9/Materials | Repaired Lgt. Treads 605 | -9/Materials | Repaired Aluminum Leg 724 | -9/Materials | Build established: Mutant 780 | -9/Materials | Discovered new exit (range 15) 807 | -9/Materials | Identified exit to Storage 1179 | -9/Materials | Repaired Aluminum Leg 1408 | -9/Materials | Discovered new exit (range 9) 1429 | -9/Materials | Identified exit to Materials 1434 | -9/Materials | Entered another Materials area 1434 | -8/Materials | Evolved 2 slots: Utility x1, Weapon x1 1762 | -8/Materials | Self-destructed Last Messages --------------- 01608_ Destroyed Transport Network Coupler. 01646_ Dropped Targeting Computer. 01646_ Acquired Adv. Targeting Computer. 01659_ Connecting with Terminal... >>Trojan(Botnet) Trojan loaded successfully. Testing... Terminal linked with 0 systems. Awaiting botnet instructions. 01683_ Dropped Enh. Autogun. 01688_ Critical hit (Burn: +37). 01692_ U-05 Engineer builds a Door. 01697_ R-06 Scavenger collects Targeting Computer. 01702_ R-06 Scavenger collects Enh. Autogun. 01703_ Imp. Sensor Array destroyed. 01705_ Slammed into U-05 Engineer. 01745_ Critical hit (Burn: +37). 01751_ Lgt. Treads destroyed. 01759_ Enh. Autogun destroyed. Map ----- +----------------------------------------------------+ | ?????????????????????????????????????????????????? | | ?????????????????????????????????????????????????? | | ?????????????????????????????????????????????????? | | ?????????????????????????????????????????????????? | | ?????????????????????????????????????????????????? | | ?????????????????????????????????????????????????? | | ?????????????????????????????????????????????????? | | ?????????????????????????????????????????????????? | | ?????????????????????????????????????????????????? | | ?????????????????????????????????????????????????? | | ??????????????????????? ???????????????????????? | | ??????????????????????# ???????????????????????? | | ??????????????????????# ???????????????????????? | | ??????????????????????# ???????????????????????? | | ??????????????????????# ???????????????????????? | | ??????????????????????# ???????????????????????? | | ??????????????????????# ???????????????????????? | | ??????????????????????# #??????????????????????? | | ??????????????????????# #??????????????????????? | | ??????????????????????# ###????????????????????? | | ??????????????????????# #######???############ | | ??????????????????????# ??? | | ??????????????????????# ????? | | ??????????????????????# ??????? | | ??????????????????????# ###+##?????########### | | ???????????????????????# @ ## ??????????????# | | ??????????????????#????# ## "??????????????# | | ??????????????????# #w ## G?????????????# | | ??????????????????# + ## "??????????????# | | ??????????????????# # ## ??????????????# | | ??????????????????# # ## "???????????????# | | ??????????????????####?# # "????????######### | | ???????????????????????# #?[ ?????????# == !# | | ???????????????????????# #? ?????????# # | | ???????????????????????# #?#/#?????????# ""T"" # | | ???????????????????????#k Y#?# #?????????# """"" # | | ???????????????????????# Y ### ########??# =* # | | ???????????????????????# #########+## | | ???????????????????????#k ##### | | ???????????????????????# #####+############ | | ???????????????????????# ## #??????? | | ???????????????????????# ## ""#??????? | | ???????????????????????# ## ""#??????? | | ?????????????????????? ## [] T"#??????? | | ???????????????????? # [ # !! ""#??????? | | ??????????????????? # # !! ""#??????? | | ???????????????????###### ## + !! #??????? | | ????????????????????????# ?# # #??????? | | ????????????????????????# ?# # #??????? | | ????????????????????????#+?## ###########??????? | +----------------------------------------------------+ Best States ------------- Heat Dissipation 31 Energy Generation 14 Energy Capacity 250 Matter Stores 300 Matter Capacity 300 Sight Range 16 Robot Scan Range 15 Terrain Scan Density 10 Evasion (%) 55 Recoil Reduction 1 Item Schematics ----------------- Hacking Suite | -9/Materials | Scanalyzed Enh. Autogun | -9/Materials | Scanalyzed Robot Schematics ------------------ None Fabricated ------------ Nothing Alien Tech Used ----------------- None Achievements -------------- None Challenges ------------ None Game ------ Seed AngularImpactFirepult Manual? 0 Play Time 00:14:07 Cumulative 140.6 hours Start 2024.05.01 @ 13:37:52 End 2024.05.01 @ 13:49:20 Sessions 1 Manual Loads 0 Difficulty Rogue Special Mode None Game No. 271 Rogue 271 Adventurer 0 Explorer 0 Win Type - Total 0 Types 0/0/0/0/0/0/0/0/0 Lore% 35 Gallery% 49 Achievement% 34 Wizard Run 0 Options --------- Layout 1 ASCII 0 Keyboard 0 Movement Mouse Keybinds 0 Fullscreen 1 Font 24/Smallcaps Map View 50x40 Zoom Use 0% Tactical HUD 1 Map Filters NONE Filters NONE Steam 1 RUN: ae6e0114-4df8-440f-9820-a518925434e5